[Event "December 19 Late 2023"]
[Site "https://www.chess.com"]
[Date "2023.12.19"]
[Round "6"]
[White "Mahdavi, Reza"]
[Black "Korchynskyi, Mykola"]
[Result "1-0"]
[Board "24"]
[TimeControl "180+1"]
[WhiteFideId "12595926"]
[BlackFideId "34138005"]
[WhiteElo "2426"]
[BlackElo "2007"]
[WhiteTeam "IRI"]
[BlackTeam "UKR"]
[WhiteClock "0:00:49"]
[BlackClock "0:00:40"]

1. e4 {[%clk 0:03:00]}  e6 {[%clk 0:02:56]} 2. d4 {[%clk 0:03:00]}  d5 {[%clk 0:02:55]} 3. Nd2 {[%clk 0:03:00]}  c5 {[%clk 0:02:55]} 4. Ngf3 {[%clk 0:02:59]}  cxd4 {[%clk 0:02:55]} 5. Nxd4 {[%clk 0:02:55]}  Nc6 {[%clk 0:02:53]} 6. Bb5 {[%clk 0:02:51]}  Bd7 {[%clk 0:02:50]} 7. Nxc6 {[%clk 0:02:50]}  Bxc6 {[%clk 0:02:48]} 8. Bxc6+ {[%clk 0:02:48]}  bxc6 {[%clk 0:02:49]} 9. O-O {[%clk 0:02:48]}  Nf6 {[%clk 0:02:49]} 10. Qe2 {[%clk 0:02:46]}  Be7 {[%clk 0:02:45]} 11. b3 {[%clk 0:02:43]}  O-O {[%clk 0:02:45]} 12. Bb2 {[%clk 0:02:44]}  Rc8 {[%clk 0:02:42]} 13. c4 {[%clk 0:02:39]}  dxe4 {[%clk 0:02:41]} 14. Nxe4 {[%clk 0:02:39]}  Nxe4 {[%clk 0:02:42]} 15. Qxe4 {[%clk 0:02:40]}  Bf6 {[%clk 0:02:42]} 16. Rad1 {[%clk 0:02:36]}  Qe7 {[%clk 0:02:41]} 17. Bxf6 {[%clk 0:02:37]}  Qxf6 {[%clk 0:02:41]} 18. Rd7 {[%clk 0:02:38]}  a5 {[%clk 0:02:40]} 19. Ra7 {[%clk 0:02:33]}  Qc3 {[%clk 0:02:39]} 20. h3 {[%clk 0:02:27]}  Qd2 {[%clk 0:02:36]} 21. Qf3 {[%clk 0:02:08]}  Qxa2 {[%clk 0:02:34]} 22. Rd1 {[%clk 0:02:05]}  Rb8 {[%clk 0:02:13]} 23. Rd3 {[%clk 0:01:58]}  c5 {[%clk 0:02:05]} 24. Kh2 {[%clk 0:01:58]}  Qa1 {[%clk 0:02:04]} 25. g3 {[%clk 0:01:47]}  Qb2 {[%clk 0:01:38]} 26. Rxa5 {[%clk 0:01:34]}  Qe5 {[%clk 0:01:38]} 27. Ra7 {[%clk 0:01:32]}  h6 {[%clk 0:01:33]} 28. Rdd7 {[%clk 0:01:33]}  Qf6 {[%clk 0:01:25]} 29. Qxf6 {[%clk 0:01:31]}  gxf6 {[%clk 0:01:26]} 30. Rab7 {[%clk 0:01:31]}  Rxb7 {[%clk 0:01:22]} 31. Rxb7 {[%clk 0:01:32]}  Rd8 {[%clk 0:01:23]} 32. Rb5 {[%clk 0:01:29]}  Rd3 {[%clk 0:01:22]} 33. Kg2 {[%clk 0:01:26]}  Kf8 {[%clk 0:01:21]} 34. Kf1 {[%clk 0:01:26]}  Ke7 {[%clk 0:01:21]} 35. Ke2 {[%clk 0:01:27]}  Rc3 {[%clk 0:01:21]} 36. Rxc5 {[%clk 0:01:16]}  Rxb3 {[%clk 0:01:20]} 37. Rh5 {[%clk 0:01:16]}  Rc3 {[%clk 0:01:18]} 38. Rxh6 {[%clk 0:01:16]}  Rxc4 {[%clk 0:01:19]} 39. Rh8 {[%clk 0:01:15]}  f5 {[%clk 0:01:19]} 40. Kf3 {[%clk 0:01:15]}  Kf6 {[%clk 0:01:19]} 41. Rg8 {[%clk 0:01:14]}  Rc3+ {[%clk 0:01:19]} 42. Kg2 {[%clk 0:01:15]}  Rc4 {[%clk 0:01:15]} 43. h4 {[%clk 0:01:15]}  Rg4 {[%clk 0:01:09]} 44. Rxg4 {[%clk 0:01:08]}  fxg4 {[%clk 0:01:10]} 45. Kf1 {[%clk 0:01:09]}  Ke5 {[%clk 0:01:01]} 46. Ke2 {[%clk 0:01:09]}  f5 {[%clk 0:01:02]} 47. Ke3 {[%clk 0:01:08]}  Kf6 {[%clk 0:01:01]} 48. Kd4 {[%clk 0:01:08]}  e5+ {[%clk 0:01:01]} 49. Kd5 {[%clk 0:01:09]}  e4 {[%clk 0:00:48]} 50. Kd4 {[%clk 0:00:57]}  Ke6 {[%clk 0:00:48]} 51. Ke3 {[%clk 0:00:47]}  Ke5 {[%clk 0:00:37]} 52. h5 {[%clk 0:00:47]}  Ke6 {[%clk 0:00:34]} 53. Kf4 {[%clk 0:00:47]}  Kf6 {[%clk 0:00:35]} 54. h6 {[%clk 0:00:47]}  Kg6 {[%clk 0:00:36]} 55. h7 {[%clk 0:00:43]}  Kxh7 {[%clk 0:00:37]} 56. Kxf5 {[%clk 0:00:43]}  Kh6 {[%clk 0:00:31]} 57. Kxg4 {[%clk 0:00:42]}  e3 {[%clk 0:00:31]} 58. fxe3 {[%clk 0:00:42]}  Kg6 {[%clk 0:00:29]} 59. e4 {[%clk 0:00:42]}  Kf6 {[%clk 0:00:29]} 60. Kh5 {[%clk 0:00:41]}  Ke6 {[%clk 0:00:30]} 61. g4 {[%clk 0:00:42]}  Ke5 {[%clk 0:00:31]} 62. g5 {[%clk 0:00:42]}  Kd4 {[%clk 0:00:32]} 63. g6 {[%clk 0:00:43]}  Kc3 {[%clk 0:00:33]} 64. g7 {[%clk 0:00:44]}  Kb2 {[%clk 0:00:34]} 65. g8=Q {[%clk 0:00:45]}  Ka1 {[%clk 0:00:35]} 66. Qb8 {[%clk 0:00:44]}  Ka2 {[%clk 0:00:36]} 67. Qb4 {[%clk 0:00:44]}  Ka1 {[%clk 0:00:35]} 68. Kg4 {[%clk 0:00:45]}  Ka2 {[%clk 0:00:36]} 69. Kf3 {[%clk 0:00:45]}  Ka1 {[%clk 0:00:37]} 70. Ke2 {[%clk 0:00:46]}  Ka2 {[%clk 0:00:38]} 71. Kd2 {[%clk 0:00:47]}  Ka1 {[%clk 0:00:39]} 72. Kc2 {[%clk 0:00:48]}  Ka2 {[%clk 0:00:40]} 73. Qa4# {[%clk 0:00:49]} 1-0

[Event "December 19 Late 2023"]
[Site "https://www.chess.com"]
[Date "2023.12.19"]
[Round "6"]
[White "Beerdsen, Thomas"]
[Black "Crasyhealer"]
[Result "1-0"]
[Board "25"]
[TimeControl "180+1"]
[WhiteFideId "1030108"]
[WhiteElo "2550"]
[BlackElo "2489"]
[WhiteTeam "NED"]
[WhiteClock "0:02:29"]
[BlackClock "0:01:25"]

1. e4 {[%clk 0:03:00]}  e5 {[%clk 0:02:56]} 2. Nc3 {[%clk 0:02:59]}  Nf6 {[%clk 0:02:56]} 3. f4 {[%clk 0:03:00]}  d5 {[%clk 0:02:55]} 4. fxe5 {[%clk 0:03:00]}  Nxe4 {[%clk 0:02:54]} 5. Nf3 {[%clk 0:03:01]}  Nc6 {[%clk 0:02:51]} 6. Bb5 {[%clk 0:03:01]}  Nxc3 {[%clk 0:02:46]} 7. bxc3 {[%clk 0:03:01]}  Be7 {[%clk 0:02:46]} 8. O-O {[%clk 0:03:00]}  O-O {[%clk 0:02:47]} 9. d4 {[%clk 0:03:01]}  Bf5 {[%clk 0:02:45]} 10. Kh1 {[%clk 0:02:57]}  Na5 {[%clk 0:02:43]} 11. Bd3 {[%clk 0:02:56]}  Be4 {[%clk 0:02:43]} 12. Qe2 {[%clk 0:02:55]}  Bxd3 {[%clk 0:02:42]} 13. Qxd3 {[%clk 0:02:55]}  c5 {[%clk 0:02:41]} 14. Bf4 {[%clk 0:02:52]}  Nc4 {[%clk 0:02:38]} 15. Rae1 {[%clk 0:02:52]}  Rc8 {[%clk 0:02:38]} 16. Qf5 {[%clk 0:02:51]}  Rc6 {[%clk 0:02:34]} 17. Ng5 {[%clk 0:02:48]}  Rg6 {[%clk 0:02:32]} 18. h4 {[%clk 0:02:46]}  h6 {[%clk 0:02:31]} 19. Nxf7 {[%clk 0:02:45]}  Ra6 {[%clk 0:02:01]} 20. e6 {[%clk 0:02:33]}  Qe8 {[%clk 0:02:00]} 21. Bxh6 {[%clk 0:02:31]}  Nd6 {[%clk 0:01:52]} 22. Qg6 {[%clk 0:02:29]}  Nxf7 {[%clk 0:01:25]} 23. Qxg7# {[%clk 0:02:29]} 1-0

[Event "December 19 Late 2023"]
[Site "https://www.chess.com"]
[Date "2023.12.19"]
[Round "6"]
[White "Kazmaier, Daniel"]
[Black "Durarbayli, Vasif"]
[Result "0-1"]
[Board "26"]
[TimeControl "180+1"]
[WhiteFideId "2606089"]
[BlackFideId "13402935"]
[WhiteElo "2484"]
[BlackElo "2551"]
[WhiteTeam "CAN"]
[BlackTeam "AZE"]
[WhiteClock "0:00:00"]
[BlackClock "0:00:37"]

1. b3 {[%clk 0:02:35]}  e5 {[%clk 0:02:58]} 2. Bb2 {[%clk 0:02:34]}  Nc6 {[%clk 0:02:58]} 3. e3 {[%clk 0:02:35]}  d5 {[%clk 0:02:58]} 4. Nf3 {[%clk 0:02:32]}  Bd6 {[%clk 0:02:57]} 5. d4 {[%clk 0:02:32]}  e4 {[%clk 0:02:57]} 6. Nfd2 {[%clk 0:02:32]}  Nce7 {[%clk 0:02:56]} 7. c4 {[%clk 0:02:32]}  c6 {[%clk 0:02:56]} 8. Nc3 {[%clk 0:02:33]}  Nf6 {[%clk 0:02:54]} 9. Be2 {[%clk 0:02:31]}  a6 {[%clk 0:02:49]} 10. Qc2 {[%clk 0:02:28]}  h5 {[%clk 0:02:47]} 11. h3 {[%clk 0:02:25]}  h4 {[%clk 0:02:43]} 12. O-O-O {[%clk 0:02:20]}  b5 {[%clk 0:02:39]} 13. Kb1 {[%clk 0:02:17]}  Bf5 {[%clk 0:02:31]} 14. Rc1 {[%clk 0:02:11]}  O-O {[%clk 0:02:15]} 15. Ka1 {[%clk 0:01:44]}  Qd7 {[%clk 0:02:08]} 16. Qd1 {[%clk 0:01:25]}  Rfb8 {[%clk 0:02:05]} 17. c5 {[%clk 0:01:20]}  Bc7 {[%clk 0:02:04]} 18. f3 {[%clk 0:01:19]}  a5 {[%clk 0:02:03]} 19. fxe4 {[%clk 0:01:15]}  dxe4 {[%clk 0:02:02]} 20. Qc2 {[%clk 0:00:55]}  Qe6 {[%clk 0:02:02]} 21. Rhf1 {[%clk 0:00:52]}  a4 {[%clk 0:02:01]} 22. bxa4 {[%clk 0:00:51]}  b4 {[%clk 0:02:00]} 23. Ncb1 {[%clk 0:00:29]}  Nfd5 {[%clk 0:01:54]} 24. Bc4 {[%clk 0:00:28]}  Qg6 {[%clk 0:01:51]} 25. Bxd5 {[%clk 0:00:25]}  cxd5 {[%clk 0:01:42]} 26. Rf2 {[%clk 0:00:18]}  Bd7 {[%clk 0:01:39]} 27. Nb3 {[%clk 0:00:14]}  Rxa4 {[%clk 0:01:27]} 28. Rcf1 {[%clk 0:00:10]}  Qa6 {[%clk 0:01:12]} 29. Bc1 {[%clk 0:00:07]}  Be6 {[%clk 0:01:02]} 30. Bd2 {[%clk 0:00:04]}  Nc6 {[%clk 0:01:01]} 31. Be1 {[%clk 0:00:04]}  Ra8 {[%clk 0:00:59]} 32. Nc1 {[%clk 0:00:03]}  Na5 {[%clk 0:00:56]} 33. Nd2 {[%clk 0:00:03]}  Ra3 {[%clk 0:00:50]} 34. Ndb3 {[%clk 0:00:00]}  Nc4 {[%clk 0:00:37]} 0-1

[Event "December 19 Late 2023"]
[Site "https://www.chess.com"]
[Date "2023.12.19"]
[Round "6"]
[White "Antunez Soler, Luis"]
[Black "Ibarra Jerez, Jose Carlos"]
[Result "0-1"]
[Board "29"]
[TimeControl "180+1"]
[WhiteFideId "3513335"]
[BlackFideId "2226332"]
[WhiteElo "2154"]
[BlackElo "2634"]
[WhiteTeam "CUB"]
[BlackTeam "ESP"]
[WhiteClock "0:00:09"]
[BlackClock "0:01:20"]

1. e4 {[%clk 0:03:00]}  c5 {[%clk 0:02:59]} 2. Nf3 {[%clk 0:03:01]}  e6 {[%clk 0:02:59]} 3. d4 {[%clk 0:03:00]}  cxd4 {[%clk 0:03:00]} 4. Nxd4 {[%clk 0:03:01]}  Bc5 {[%clk 0:03:00]} 5. Nb3 {[%clk 0:02:59]}  Bb6 {[%clk 0:03:01]} 6. Nc3 {[%clk 0:03:00]}  Ne7 {[%clk 0:03:00]} 7. Bd3 {[%clk 0:02:59]}  O-O {[%clk 0:02:59]} 8. O-O {[%clk 0:02:59]}  f5 {[%clk 0:02:59]} 9. Qh5 {[%clk 0:02:52]}  f4 {[%clk 0:02:49]} 10. e5 {[%clk 0:02:30]}  Ng6 {[%clk 0:02:49]} 11. Bxg6 {[%clk 0:02:27]}  hxg6 {[%clk 0:02:50]} 12. Qxg6 {[%clk 0:02:28]}  Nc6 {[%clk 0:02:50]} 13. Ne4 {[%clk 0:01:42]}  Nxe5 {[%clk 0:02:48]} 14. Qh5 {[%clk 0:01:42]}  Rf5 {[%clk 0:02:47]} 15. Qh3 {[%clk 0:01:27]}  d5 {[%clk 0:02:47]} 16. Ned2 {[%clk 0:01:22]}  Qe8 {[%clk 0:02:45]} 17. Re1 {[%clk 0:00:44]}  Bd7 {[%clk 0:02:36]} 18. Qc3 {[%clk 0:00:30]}  Rc8 {[%clk 0:02:33]} 19. Qb4 {[%clk 0:00:30]}  Rc4 {[%clk 0:02:24]} 20. Nxc4 {[%clk 0:00:29]}  dxc4 {[%clk 0:02:07]} 21. Nd2 {[%clk 0:00:28]}  Ng4 {[%clk 0:02:06]} 22. Ne4 {[%clk 0:00:28]}  Bc6 {[%clk 0:02:00]} 23. Qxc4 {[%clk 0:00:24]}  Qg6 {[%clk 0:01:40]} 24. Bd2 {[%clk 0:00:19]}  Re5 {[%clk 0:01:31]} 25. Qd3 {[%clk 0:00:16]}  Bxe4 {[%clk 0:01:25]} 26. Rxe4 {[%clk 0:00:16]}  Rxe4 {[%clk 0:01:23]} 27. Bxf4 {[%clk 0:00:09]}  Nxf2 {[%clk 0:01:20]} 0-1

[Event "December 19 Late 2023"]
[Site "https://www.chess.com"]
[Date "2023.12.19"]
[Round "6"]
[White "Lin, Bryan Enming"]
[Black "Zhigalko, Sergei"]
[Result "0-1"]
[Board "30"]
[TimeControl "180+1"]
[WhiteFideId "30987121"]
[BlackFideId "13502956"]
[WhiteElo "2567"]
[BlackElo "2616"]
[WhiteTeam "USA"]
[BlackTeam "BLR"]
[WhiteClock "0:00:30"]
[BlackClock "0:00:04"]

1. e4 {[%clk 0:03:00]}  c5 {[%clk 0:03:00]} 2. Nf3 {[%clk 0:03:00]}  Nc6 {[%clk 0:03:00]} 3. d4 {[%clk 0:03:01]}  cxd4 {[%clk 0:03:01]} 4. Nxd4 {[%clk 0:03:02]}  Nf6 {[%clk 0:03:01]} 5. Nc3 {[%clk 0:03:02]}  e5 {[%clk 0:03:02]} 6. Ndb5 {[%clk 0:03:03]}  d6 {[%clk 0:03:02]} 7. Bg5 {[%clk 0:03:03]}  a6 {[%clk 0:03:03]} 8. Na3 {[%clk 0:03:04]}  b5 {[%clk 0:03:03]} 9. Nd5 {[%clk 0:03:04]}  Be7 {[%clk 0:03:04]} 10. Bxf6 {[%clk 0:03:05]}  Bxf6 {[%clk 0:03:05]} 11. c3 {[%clk 0:03:06]}  Bg5 {[%clk 0:03:05]} 12. Nc2 {[%clk 0:03:06]}  Ne7 {[%clk 0:03:05]} 13. a4 {[%clk 0:02:56]}  bxa4 {[%clk 0:03:05]} 14. Ncb4 {[%clk 0:02:55]}  O-O {[%clk 0:03:05]} 15. Rxa4 {[%clk 0:02:53]}  a5 {[%clk 0:03:05]} 16. Nxe7+ {[%clk 0:02:45]}  Qxe7 {[%clk 0:03:06]} 17. Nd5 {[%clk 0:02:44]}  Qb7 {[%clk 0:03:03]} 18. Ra2 {[%clk 0:02:30]}  Be6 {[%clk 0:02:19]} 19. Bc4 {[%clk 0:02:23]}  Rfc8 {[%clk 0:02:19]} 20. b3 {[%clk 0:02:17]}  a4 {[%clk 0:02:18]} 21. O-O {[%clk 0:02:17]}  axb3 {[%clk 0:02:18]} 22. Rxa8 {[%clk 0:02:17]}  Rxa8 {[%clk 0:02:13]} 23. Qxb3 {[%clk 0:02:15]}  Qxb3 {[%clk 0:02:05]} 24. Bxb3 {[%clk 0:02:16]}  Rb8 {[%clk 0:01:58]} 25. Ra1 {[%clk 0:02:13]}  g6 {[%clk 0:01:53]} 26. Bc4 {[%clk 0:02:04]}  Rc8 {[%clk 0:01:49]} 27. Ra4 {[%clk 0:02:02]}  Kg7 {[%clk 0:01:36]} 28. h3 {[%clk 0:01:58]}  Rc6 {[%clk 0:00:44]} 29. Kh2 {[%clk 0:01:45]}  h5 {[%clk 0:00:43]} 30. g3 {[%clk 0:01:43]}  h4 {[%clk 0:00:42]} 31. Kg2 {[%clk 0:01:28]}  hxg3 {[%clk 0:00:27]} 32. fxg3 {[%clk 0:01:29]}  Bd2 {[%clk 0:00:25]} 33. Ba2 {[%clk 0:00:56]}  Bxc3 {[%clk 0:00:18]} 34. Ne7 {[%clk 0:00:50]}  Rc7 {[%clk 0:00:14]} 35. Nd5 {[%clk 0:00:50]}  Rc5 {[%clk 0:00:07]} 36. Ra7 {[%clk 0:00:47]}  Bd4 {[%clk 0:00:07]} 37. Bb3 {[%clk 0:00:42]}  Rb5 {[%clk 0:00:03]} 38. Bc4 {[%clk 0:00:40]}  Rb2+ {[%clk 0:00:03]} 39. Kf3 {[%clk 0:00:30]}  Bxa7 {[%clk 0:00:04]} 0-1

[Event "December 19 Late 2023"]
[Site "https://www.chess.com"]
[Date "2023.12.19"]
[Round "6"]
[White "Lymar, Vladislav"]
[Black "Ghasi, Ameet K"]
[Result "1-0"]
[Board "34"]
[TimeControl "180+1"]
[WhiteFideId "14162180"]
[BlackFideId "409200"]
[WhiteElo "2158"]
[BlackElo "2558"]
[WhiteTeam "UKR"]
[BlackTeam "ENG"]
[WhiteClock "0:00:10"]
[BlackClock "0:00:03"]

1. d4 {[%clk 0:03:00]}  Nf6 {[%clk 0:03:00]} 2. Bf4 {[%clk 0:03:00]}  c6 {[%clk 0:02:58]} 3. e3 {[%clk 0:03:00]}  g6 {[%clk 0:02:58]} 4. c3 {[%clk 0:02:58]}  Bg7 {[%clk 0:02:59]} 5. h3 {[%clk 0:02:58]}  O-O {[%clk 0:02:59]} 6. Nf3 {[%clk 0:02:59]}  d6 {[%clk 0:03:00]} 7. Nbd2 {[%clk 0:02:59]}  a5 {[%clk 0:02:59]} 8. a4 {[%clk 0:02:54]}  Nbd7 {[%clk 0:02:57]} 9. Be2 {[%clk 0:02:54]}  b6 {[%clk 0:02:55]} 10. O-O {[%clk 0:02:54]}  Bb7 {[%clk 0:02:56]} 11. Bh2 {[%clk 0:02:54]}  Re8 {[%clk 0:02:53]} 12. Qb3 {[%clk 0:02:54]}  h6 {[%clk 0:02:43]} 13. Rfd1 {[%clk 0:02:54]}  Qc7 {[%clk 0:02:37]} 14. e4 {[%clk 0:02:44]}  e5 {[%clk 0:02:33]} 15. dxe5 {[%clk 0:02:43]}  dxe5 {[%clk 0:02:30]} 16. Nc4 {[%clk 0:02:33]}  Nc5 {[%clk 0:02:30]} 17. Qxb6 {[%clk 0:02:30]}  Qe7 {[%clk 0:02:15]} 18. Nd6 {[%clk 0:01:38]}  Nfxe4 {[%clk 0:02:06]} 19. Nxe8 {[%clk 0:01:34]}  Rxe8 {[%clk 0:01:59]} 20. Bc4 {[%clk 0:01:21]}  Kh7 {[%clk 0:01:47]} 21. Qxa5 {[%clk 0:01:19]}  Ra8 {[%clk 0:01:01]} 22. Qb4 {[%clk 0:01:17]}  f5 {[%clk 0:01:01]} 23. a5 {[%clk 0:01:16]}  g5 {[%clk 0:00:40]} 24. a6 {[%clk 0:01:12]}  Bc8 {[%clk 0:00:40]} 25. Qb6 {[%clk 0:01:01]}  Be6 {[%clk 0:00:38]} 26. Bxe6 {[%clk 0:00:51]}  Qxe6 {[%clk 0:00:38]} 27. a7 {[%clk 0:00:50]}  g4 {[%clk 0:00:26]} 28. Nd2 {[%clk 0:00:45]}  gxh3 {[%clk 0:00:23]} 29. Nxe4 {[%clk 0:00:32]}  Nxe4 {[%clk 0:00:24]} 30. Rd8 {[%clk 0:00:18]}  Qg6 {[%clk 0:00:22]} 31. g3 {[%clk 0:00:17]}  Qg4 {[%clk 0:00:21]} 32. Rxa8 {[%clk 0:00:12]}  Qf3 {[%clk 0:00:21]} 33. Kf1 {[%clk 0:00:12]}  Qh1+ {[%clk 0:00:09]} 34. Ke2 {[%clk 0:00:13]}  Qxa1 {[%clk 0:00:09]} 35. Rb8 {[%clk 0:00:09]}  Qb1 {[%clk 0:00:07]} 36. Qe3 {[%clk 0:00:05]}  Qc2+ {[%clk 0:00:05]} 37. Ke1 {[%clk 0:00:03]}  f4 {[%clk 0:00:03]} 38. Qe2 {[%clk 0:00:01]}  Qb1+ {[%clk 0:00:02]} 39. Qd1 {[%clk 0:00:01]}  Qxd1+ {[%clk 0:00:03]} 40. Kxd1 {[%clk 0:00:02]}  Nxf2+ {[%clk 0:00:03]} 41. Ke2 {[%clk 0:00:03]}  fxg3 {[%clk 0:00:04]} 42. Bxg3 {[%clk 0:00:03]}  Ne4 {[%clk 0:00:05]} 43. Bh2 {[%clk 0:00:03]}  Nc5 {[%clk 0:00:05]} 44. a8=Q {[%clk 0:00:04]}  Ne6 {[%clk 0:00:05]} 45. Qxc6 {[%clk 0:00:04]}  Ng5 {[%clk 0:00:06]} 46. Qd5 {[%clk 0:00:04]}  Kg6 {[%clk 0:00:06]} 47. Bxe5 {[%clk 0:00:05]}  Kh5 {[%clk 0:00:07]} 48. Bh2 {[%clk 0:00:04]}  Bf6 {[%clk 0:00:07]} 49. Rb5 {[%clk 0:00:04]}  Kg6 {[%clk 0:00:07]} 50. Qd3+ {[%clk 0:00:04]}  Kh5 {[%clk 0:00:08]} 51. Rxg5+ {[%clk 0:00:05]}  Bxg5 {[%clk 0:00:08]} 52. Qxh3+ {[%clk 0:00:06]}  Kg6 {[%clk 0:00:09]} 53. Bg3 {[%clk 0:00:07]}  Kf6 {[%clk 0:00:08]} 54. Qg2 {[%clk 0:00:08]}  Kg6 {[%clk 0:00:09]} 55. Bf2 {[%clk 0:00:08]}  Kh5 {[%clk 0:00:09]} 56. Qf3+ {[%clk 0:00:09]}  Kg6 {[%clk 0:00:10]} 57. Be3 {[%clk 0:00:10]}  Bf4 {[%clk 0:00:03]} 58. Bxf4 {[%clk 0:00:10]} 1-0

[Event "December 19 Late 2023"]
[Site "https://www.chess.com"]
[Date "2023.12.19"]
[Round "6"]
[White "Tanenbaum, Zachary"]
[Black "Makaraci, Tunahan"]
[Result "1-0"]
[Board "36"]
[TimeControl "180+1"]
[WhiteFideId "2060850"]
[BlackFideId "6356559"]
[WhiteElo "2256"]
[BlackElo "2112"]
[WhiteTeam "USA"]
[BlackTeam "TUR"]
[WhiteClock "0:00:42"]
[BlackClock "0:00:00"]

1. e4 {[%clk 0:03:00]}  Nf6 {[%clk 0:02:53]} 2. e5 {[%clk 0:03:00]}  Nd5 {[%clk 0:02:54]} 3. d4 {[%clk 0:03:01]}  d6 {[%clk 0:02:55]} 4. Nf3 {[%clk 0:03:01]}  g6 {[%clk 0:02:55]} 5. Bc4 {[%clk 0:03:00]}  Nb6 {[%clk 0:02:55]} 6. Bb3 {[%clk 0:03:00]}  Bg7 {[%clk 0:02:55]} 7. Ng5 {[%clk 0:02:58]}  e6 {[%clk 0:02:55]} 8. Qf3 {[%clk 0:02:58]}  Qe7 {[%clk 0:02:52]} 9. Ne4 {[%clk 0:02:57]}  dxe5 {[%clk 0:02:49]} 10. Bg5 {[%clk 0:02:56]}  Qb4+ {[%clk 0:02:46]} 11. c3 {[%clk 0:02:57]}  Qa5 {[%clk 0:02:45]} 12. Bf6 {[%clk 0:02:55]}  O-O {[%clk 0:02:41]} 13. dxe5 {[%clk 0:02:55]}  Nc6 {[%clk 0:02:12]} 14. Bxg7 {[%clk 0:02:52]}  Kxg7 {[%clk 0:02:11]} 15. Qf6+ {[%clk 0:02:48]}  Kg8 {[%clk 0:02:11]} 16. f4 {[%clk 0:02:47]}  Nd5 {[%clk 0:02:05]} 17. Qh4 {[%clk 0:02:28]}  Qb6 {[%clk 0:01:54]} 18. Bxd5 {[%clk 0:02:24]}  h5 {[%clk 0:01:19]} 19. Nf6+ {[%clk 0:02:18]}  Kg7 {[%clk 0:01:19]} 20. Be4 {[%clk 0:01:44]}  Qe3+ {[%clk 0:01:07]} 21. Kf1 {[%clk 0:01:29]}  Rd8 {[%clk 0:00:52]} 22. Na3 {[%clk 0:01:29]}  b6 {[%clk 0:00:20]} 23. Re1 {[%clk 0:01:26]}  Ba6+ {[%clk 0:00:20]} 24. c4 {[%clk 0:01:25]}  Qc5 {[%clk 0:00:10]} 25. Qf2 {[%clk 0:01:21]}  Bxc4+ {[%clk 0:00:09]} 26. Nxc4 {[%clk 0:01:20]}  Qxc4+ {[%clk 0:00:10]} 27. Kg1 {[%clk 0:01:17]}  Rac8 {[%clk 0:00:05]} 28. Bxc6 {[%clk 0:01:15]}  Qxc6 {[%clk 0:00:05]} 29. h3 {[%clk 0:01:15]}  Qc4 {[%clk 0:00:02]} 30. Re4 {[%clk 0:01:12]}  Qxa2 {[%clk 0:00:02]} 31. Kh2 {[%clk 0:01:11]}  Qb3 {[%clk 0:00:01]} 32. Re3 {[%clk 0:01:11]}  Qc4 {[%clk 0:00:02]} 33. Rg3 {[%clk 0:01:09]}  Kf8 {[%clk 0:00:01]} 34. b3 {[%clk 0:00:56]}  Qb4 {[%clk 0:00:02]} 35. Qe3 {[%clk 0:00:49]}  Qd4 {[%clk 0:00:02]} 36. Qc1 {[%clk 0:00:47]}  Qc5 {[%clk 0:00:02]} 37. Qxc5+ {[%clk 0:00:45]}  bxc5 {[%clk 0:00:02]} 38. Rc3 {[%clk 0:00:45]}  Rb8 {[%clk 0:00:02]} 39. Ra1 {[%clk 0:00:45]}  Rb7 {[%clk 0:00:02]} 40. Ne4 {[%clk 0:00:44]}  Rd4 {[%clk 0:00:01]} 41. Nxc5 {[%clk 0:00:45]}  Rbb4 {[%clk 0:00:01]} 42. Nd3 {[%clk 0:00:43]}  Rb7 {[%clk 0:00:00]} 43. Ra4 {[%clk 0:00:42]} 1-0

[Event "December 19 Late 2023"]
[Site "https://www.chess.com"]
[Date "2023.12.19"]
[Round "6"]
[White "Liascovich, Lucas"]
[Black "Derakhshani, Borna"]
[Result "1-0"]
[Board "39"]
[TimeControl "180+1"]
[WhiteFideId "108634"]
[BlackFideId "12518450"]
[WhiteElo "2455"]
[BlackElo "2286"]
[WhiteTeam "ARG"]
[BlackTeam "ENG"]
[WhiteClock "0:01:03"]
[BlackClock "0:00:30"]

1. e4 {[%clk 0:03:00]}  c6 {[%clk 0:02:59]} 2. d4 {[%clk 0:03:00]}  d5 {[%clk 0:02:59]} 3. exd5 {[%clk 0:03:01]}  cxd5 {[%clk 0:03:00]} 4. Bd3 {[%clk 0:03:00]}  Nc6 {[%clk 0:02:59]} 5. c3 {[%clk 0:03:00]}  Nf6 {[%clk 0:02:58]} 6. Ne2 {[%clk 0:03:00]}  Bg4 {[%clk 0:02:59]} 7. O-O {[%clk 0:03:00]}  e6 {[%clk 0:02:59]} 8. f3 {[%clk 0:02:55]}  Bh5 {[%clk 0:02:59]} 9. Bg5 {[%clk 0:02:53]}  Bd6 {[%clk 0:02:58]} 10. Qe1 {[%clk 0:02:52]}  Bg6 {[%clk 0:02:55]} 11. Bxg6 {[%clk 0:02:42]}  hxg6 {[%clk 0:02:56]} 12. Bf4 {[%clk 0:02:41]}  Nh5 {[%clk 0:02:45]} 13. Bxd6 {[%clk 0:02:29]}  Qxd6 {[%clk 0:02:45]} 14. f4 {[%clk 0:02:30]}  O-O-O {[%clk 0:02:43]} 15. Nd2 {[%clk 0:02:31]}  g5 {[%clk 0:02:43]} 16. Qf2 {[%clk 0:02:25]}  gxf4 {[%clk 0:02:40]} 17. Nxf4 {[%clk 0:02:25]}  Nf6 {[%clk 0:02:23]} 18. Qg3 {[%clk 0:02:23]}  Rdg8 {[%clk 0:02:19]} 19. Ne2 {[%clk 0:02:16]}  Qe7 {[%clk 0:02:14]} 20. b4 {[%clk 0:02:11]}  Ne4 {[%clk 0:01:56]} 21. Nxe4 {[%clk 0:02:11]}  dxe4 {[%clk 0:01:57]} 22. b5 {[%clk 0:02:10]}  Na5 {[%clk 0:01:57]} 23. d5 {[%clk 0:02:02]}  exd5 {[%clk 0:01:51]} 24. Rad1 {[%clk 0:02:01]}  Rd8 {[%clk 0:01:46]} 25. Nf4 {[%clk 0:02:00]}  Qe5 {[%clk 0:01:33]} 26. Qg4+ {[%clk 0:01:59]}  Kb8 {[%clk 0:01:32]} 27. h3 {[%clk 0:01:49]}  Nc4 {[%clk 0:01:30]} 28. Qe2 {[%clk 0:01:49]}  Nb6 {[%clk 0:01:25]} 29. Qe3 {[%clk 0:01:39]}  g5 {[%clk 0:01:21]} 30. Ne2 {[%clk 0:01:37]}  g4 {[%clk 0:01:15]} 31. Qf4 {[%clk 0:01:29]}  Qxf4 {[%clk 0:01:15]} 32. Nxf4 {[%clk 0:01:27]}  gxh3 {[%clk 0:01:14]} 33. gxh3 {[%clk 0:01:28]}  Rh4 {[%clk 0:00:57]} 34. Kh2 {[%clk 0:01:22]}  Rd7 {[%clk 0:00:40]} 35. Kg3 {[%clk 0:01:18]}  Rh7 {[%clk 0:00:39]} 36. h4 {[%clk 0:01:18]}  f5 {[%clk 0:00:38]} 37. Kh3 {[%clk 0:01:17]}  Rd8 {[%clk 0:00:33]} 38. h5 {[%clk 0:01:16]}  Nc4 {[%clk 0:00:34]} 39. Rg1 {[%clk 0:01:12]}  Ne3 {[%clk 0:00:33]} 40. Rd2 {[%clk 0:01:10]}  Ng4 {[%clk 0:00:34]} 41. Kh4 {[%clk 0:01:07]}  e3 {[%clk 0:00:34]} 42. Rxd5 {[%clk 0:01:05]}  Rxd5 {[%clk 0:00:29]} 43. Nxd5 {[%clk 0:01:06]}  Ne5 {[%clk 0:00:30]} 44. Rg8# {[%clk 0:01:03]} 1-0